Cogmind - Beta 15 @@@ ROGUE MODE // 2025.06.15 @ 17:11:19 Player: dorusv Result: Destroyed by L-31 Rogue with Katana Performance ------------- Evolutions (2) 1000 Regions Visited (3) 600 Robots Destroyed (30) 150 Value Destroyed (800) 800 Prototype IDs (2) 40 Alien Tech Used (0) 0 Bonus (0) 0 TOTAL SCORE: 2590 Bonus ------- None Cogmind --------- Core Integrity 0/550 Matter 300/300 Energy 150/150 System Corruption 0% Temperature Cool (0) Movement Core (600) Ox11 Location -8/Materials Parts ------- > --- POWER (2) -------- Subdweller Power Source Light Angular Momentum Engine > --- PROPULSION (2) --- Compact Wheel Subdweller Monowheel > --- UTILITY (3) ------ Small Storage Unit Core Analyzer Tractor Beam > --- WEAPON (4) ------- Heavy Laser Heavy Laser Heavy Laser Heavy Laser > --- INVENTORY (8) ---- Heavy Laser Heavy Laser Heavy Laser Heavy Laser Peak State ------------ > --- POWER ------------ Subdweller Power Source Light Angular Momentum Engine > --- PROPULSION ------- Compact Wheel Subdweller Monowheel > --- UTILITY ---------- Small Storage Unit Core Analyzer Tractor Beam > --- WEAPON ----------- Heavy Laser Heavy Laser Heavy Laser Heavy Laser > --- INVENTORY -------- Heavy Laser Heavy Laser Heavy Laser Heavy Laser [Rating: 33] Favorites ----------- Power Ion Engine Engine Ion Engine Propulsion Light Treads Treads Light Treads Wheel Subdweller Monowheel Utility Improved Terrain Scanner Device Improved Terrain Scanner Storage Small Storage Unit Processor Core Analyzer Weapon Assault Rifle Energy Gun Heavy Laser Ballistic Gun Assault Rifle Build | -11 -10 -10 -8 ------- Run | Yrd Mat Sub Mat Slots Evolved 4 | . . . 4 Power 1 | . . . 1 Propulsion . | . . . . Utility 1 | . . . 1 Weapon 2 | . . . 2 Parts Attached 28 | 7 . 8 13 Power 4 | 1 . 2 1 Engine 4 | 1 . 2 1 Core . | . . . . Reactor . | . . . . Propulsion 5 | 2 . 2 1 Treads 2 | 2 . . . Leg . | . . . . Wheel 3 | . . 2 1 Hover . | . . . . Flight . | . . . . Utility 6 | 2 . 1 3 Device 4 | 2 . 1 1 Storage 1 | . . . 1 Processor 1 | . . . 1 Hackware . | . . . . Protection . | . . . . Artifact . | . . . . Weapon 13 | 2 . 3 8 Energy Gun 8 | . . . 8 Energy Cannon . | . . . . Ballistic Gun 5 | 2 . 3 . Ballistic Cannon . | . . . . Launcher . | . . . . Special Weapon . | . . . . Impact Weapon . | . . . . Slashing Weapon . | . . . . Piercing Weapon . | . . . . Special Melee Weapon . | . . . . Unidentified Prototypes . | . . . . Parts Lost 10 | . . 6 4 Power 2 | . . 1 1 Propulsion 3 | . . 2 1 Utility 3 | . . 1 2 Weapon 2 | . . 2 . Highest Loss Streak 4 | . . 4 3 To Critical Strikes 1 | . . 1 . Average Backups 4 | 2 4 4 4 Power . | . 1 . . Propulsion . | . . . . Utility 1 | . 2 2 . Weapon 1 | . 1 . 3 Tool/Special . | . . . . Unused Backups 1 | . . . 1 Power . | . . . . Propulsion . | . . . . Utility 1 | . . . 1 Weapon . | . . . . Tool/Special . | . . . . Average Slot Usage (%) 92 | . 100 92 88 Engine 14 | . 14 13 17 Treads 14 | . 28 18 . Wheel 7 | . . 5 14 Device 20 | . 28 26 9 Storage 3 | . . . 8 Energy Gun 11 | . . . 32 Ballistic Gun 18 | . 28 26 2 Peak Build Rating 33 | 9 9 13 33 Average Rating 14 | 5 9 9 26 On Entrance 7 | . 9 9 13 Naked Turns . | . . . . Heaviest Build 36 | 11 11 13 36 Greatest Support 40 | 40 40 40 40 Greatest Overweight (x) 11 | . . 3 11 Average Overweight (x) . | . . . 2 Largest Inventory Capacity 8 | 5 5 5 8 Average Capacity 5 | 5 5 5 7 Most Carried 6 | 4 5 5 6 Average Carried 4 | 2 4 4 4 Final Capacity 8 | 5 5 5 8 Final Carried 5 | 4 5 4 4 Class Distribution -------------------- 60% | Mutant 12% | Gunner 11% | Scavenger-Skirmisher 9% | Scavenger-Mutant 6% | Scavenger-Gunner Dominant Class ---------------- Mutant | -10/Materials Mutant | -10/Subcaves Gunner | -8/Materials Resources | -11 -10 -10 -8 ----------- Run | Yrd Mat Sub Mat Matter Collected 1058 | 342 79 333 304 Remotely 23 | . . . 23 Salvage Created 1114 | 179 162 296 477 Parts 73 | 21 10 20 22 Haulers Intercepted . | . . . . Recyclers Shooed 2 | 1 . . 1 Parts Field Recycled . | . . . . Retrieved Matter . | . . . . Parts Self-Destructed 6 | . . 6 . Prevented . | . . . . Kills | -11 -10 -10 -8 ------- Run | Yrd Mat Sub Mat Combat Hostiles Destroyed 18 | . 4 7 7 Guns 18 | . 4 7 7 Classes Destroyed 8 | 3 3 2 . Worker 3 | 1 . . 2 Tunneler 6 | 6 . . . Recycler 2 | 1 . . 1 Watcher 1 | . 1 . . Swarmer 1 | . 1 . . Grunt 9 | . 3 . 6 Sentry 2 | . . 1 1 Subdweller 6 | . . 6 . Best Kill Streak 4 | 4 2 2 4 Combat Bots Only 3 | . 2 2 3 Max Kills in Single Turn 1 | 1 1 1 1 Gunslinging . | . . . . Exploded . | . . . . Melee . | . . . . Uniques/NPCs Destroyed . | . . . . Combat | -11 -10 -10 -8 -------- Run | Yrd Mat Sub Mat Hostile Shots Fired 106 | . 14 55 37 Missed 20 | . 1 13 6 Hits 86 | . 13 42 31 Melee 1 | . . . 1 Projectile 85 | . 13 42 30 Critical Strikes 5 | . . 1 4 Damage Taken 1980 | . 124 904 952 Core 757 | . . 205 552 Absorbed by Shields . | . . . . Core Remaining (%) 59 | 100 . 18 . Volleys Fired 73 | 12 8 32 21 Largest 4 | 2 2 2 4 Hottest 276 | 40 40 50 276 Shots Fired 160 | 24 16 61 59 Gun 160 | 24 16 61 59 Cannon . | . . . . Launcher . | . . . . Special . | . . . . Kinetic 101 | 24 16 61 . Thermal 59 | . . . 59 Explosive . | . . . . Electromagnetic . | . . . . Robot Hit Streak 17 | 8 8 11 17 Robot Miss Streak 6 | 2 1 1 6 Penetration Max . | . . . . Secondary Targets 1 | . . . 1 Max Gunslinging Chain 1 | . . . 1 Shots Hit Robots 101 | 15 11 40 35 Core Hits 47 | 9 7 13 18 Critical Kills . | . . . . Critical Parts Destroyed . | . . . . Critical Strikes 1 | . . . 1 Burn 1 | . . . 1 Melee Attacks . | . . . . Impact . | . . . . Slashing . | . . . . Piercing . | . . . . Sneak Attacks . | . . . . Combat Hostiles . | . . . . Follow-up Attacks . | . . . . Damage Inflicted 1674 | 220 147 637 670 Guns 1671 | 220 147 637 667 Cannons . | . . . . Explosions . | . . . . Melee . | . . . . Ramming 3 | . . . 3 Kinetic 1004 | 220 147 637 . Thermal 667 | . . . 667 Explosive . | . . . . Electromagnetic . | . . . . Impact . | . . . . Slashing . | . . . . Piercing . | . . . . Highest Corruption . | . . . . Average Corruption . | . . . . Corruption Purged . | . . . . Corruption Blocked . | . . . . Overload Shots . | . . . . Overflow Damage . | . . . . Projectiles . | . . . . Explosions . | . . . . Melee . | . . . . Knockbacks . | . . . . Impact . | . . . . Kinetic . | . . . . Secondary . | . . . . Self-Inflicted Damage . | . . . . Shots . | . . . . Rammed 3 | . . . 3 Targets Rammed 3 | . . . 3 Kicked . | . . . . Crushed . | . . . . Highest Temperature 963 | . . . 963 Average Temperature 449 | . . . 449 Received Heat Transfer 411 | . 48 21 342 Effects 60 | . . . 60 Shutdowns 15 | . . . 15 Energy Bleed 5 | . . . 5 Interference 11 | . . . 11 Matter Decay 5 | . . . 5 Short Circuit 7 | . . . 7 Damage (minor) 5 | . . . 5 Damage (major) 7 | . . . 7 Damage (core) 5 | . . . 5 Siege Activations . | . . . . Martial Activations . | . . . . Shielding Activations . | . . . . Robots Disrupted . | . . . . Combat Hostiles . | . . . . Robots Corrupted . | . . . . Combat Hostiles . | . . . . Parts Fried . | . . . . Impact Corruptions . | . . . . Robots Melted . | . . . . Combat Hostiles . | . . . . Parts Melted 1 | . . . 1 Heat Transferred 1369 | . . . 1369 Parts Sabotaged . | . . . . Parts Stolen . | . . . . Parts Stripped . | . . . . Power Chain Reactions . | . . . . Alert | -11 -10 -10 -8 ------- Run | Yrd Mat Sub Mat Maximum Alert Level . | . . . . Low Security (%) 100 | 100 100 . 100 Level 1 . | . . . . Level 2 . | . . . . Level 3 . | . . . . Level 4 . | . . . . Level 5 . | . . . . High Security . | . . . . Max Security . | . . . . Peak Influence 68 | 20 68 . 57 Initial . | . . . . Average 11 | 2 18 . 10 Influence Increases 392 | 40 128 20 204 Destroy 0b10 Robot/C 240 | . 80 20 140 Destroy 0b10 Robot/NC 60 | 40 5 . 15 Destroy Leader 42 | . 12 . 30 Successful Hack 18 | . . . 18 Destroy Structure 2 | . 1 . 1 Lose Combat Pursuer 30 | . 30 . . Influence Decreases 359 | 40 114 34 171 Entered New Map 7 | . . 7 . Time Decay 312 | 40 114 27 131 Lost Part 40 | . . . 40 Squads Dispatched 3 | . 1 . 2 Investigation 1 | . . . 1 Extermination . | . . . . Reinforcement 2 | . 1 . 1 Assault . | . . . . Garrison . | . . . . Intercept . | . . . . Searches Triggered . | . . . . Construction Impeded . | . . . . Haulers Reinforced . | . . . . Active Scanning Responses . | . . . . Cargo Convoy Interrupts . | . . . . Stealth | -11 -10 -10 -8 --------- Run | Yrd Mat Sub Mat Distress Signals . | . . . . Communications Jammed . | . . . . Distress Signals . | . . . . Times Spotted 26 | . 8 7 11 Peak Tracking Total 5 | . 5 2 4 Tactical Retreats 2 | . 2 . . Traps | -11 -10 -10 -8 ------- Run | Yrd Mat Sub Mat Traps Triggered . | . . . . Indirectly . | . . . . Trap Hack Attempts . | . . . . Triggered . | . . . . Disarmed . | . . . . Reprogrammed . | . . . . Reused . | . . . . Traps Extracted . | . . . . Installed . | . . . . Triggered . | . . . . Machines | -11 -10 -10 -8 ---------- Run | Yrd Mat Sub Mat Machines Disabled . | . . . . Max in Single Turn . | . . . . Machines Repaired . | . . . . Machines Dismantled . | . . . . Machines Sabotaged . | . . . . Overloaded Fab Kills . | . . . . Hacking | -11 -10 -10 -8 --------- Run | Yrd Mat Sub Mat Machines Accessed 2 | . . . 2 Terminals 2 | . . . 2 Fabricators . | . . . . Repair Stations . | . . . . Recycling Units . | . . . . Scanalyzers . | . . . . Garrison Access . | . . . . Total Hacks 10 | . . . 10 Successful 8 | . . . 8 Failed 2 | . . . 2 Catastrophic 1 | . . . 1 Database Lockouts . | . . . . Manual . | . . . . Terminals 10 | . . . 10 Fabricators . | . . . . Repair Stations . | . . . . Recycling Units . | . . . . Scanalyzers . | . . . . Garrison Access . | . . . . Terminal Hacks 8 | . . . 8 Record 3 | . . . 3 Prototype ID Bank 1 | . . . 1 Branch Access Points 1 | . . . 1 Alert Level 1 | . . . 1 Dispatch Records 1 | . . . 1 Zone Layout 1 | . . . 1 Fabricator Hacks . | . . . . Repair Station Hacks . | . . . . Recycling Unit Hacks . | . . . . Scanalyzer . | . . . . Garrison Access Hacks . | . . . . Unauthorized Hacks . | . . . . Terminals . | . . . . Fabricators . | . . . . Repair Stations . | . . . . Recycling Units . | . . . . Scanalyzers . | . . . . Garrison Access . | . . . . Data Cores Recovered . | . . . . Used . | . . . . Hacking Detections 2 | . . . 2 Full Trace Events 2 | . . . 2 Feedback Events . | . . . . Feedback Blocked . | . . . . Robot Schematics Acquired . | . . . . Robots Built . | . . . . Authchips . | . . . . Time . | . . . . Total Robot Build Rating . | . . . . Part Schematics Acquired . | . . . . Parts Built . | . . . . Authchips . | . . . . Time . | . . . . Total Part Build Rating . | . . . . Parts Repaired . | . . . . Time . | . . . . Parts Recycled . | . . . . Recycled Matter . | . . . . Retrieved Matter . | . . . . Retrieved Components . | . . . . Parts Scanalyzed . | . . . . Part Schematics Acquired . | . . . . Parts Damaged . | . . . . Bothacking | -11 -10 -10 -8 ------------ Run | Yrd Mat Sub Mat Used RIF Installer . | . . . . Robots Hacked . | . . . . Non-combat . | . . . . Combat . | . . . . Robot Hacks Applied . | . . . . Relay Couplers Released . | . . . . Fabnet Peak Effective % . | . . . . Robots Rewired . | . . . . Allies Hacked . | . . . . Hacks Repelled . | . . . . Allies | -11 -10 -10 -8 -------- Run | Yrd Mat Sub Mat Total Allies . | . . . . Largest Group . | . . . . Highest-Rated Group . | . . . . Highest-Rated Ally . | . . . . Total Orders . | . . . . Ally Attacks . | . . . . Total Damage . | . . . . Kills . | . . . . Allies Corrupted . | . . . . Allies Melted . | . . . . Intel | -11 -10 -10 -8 ------- Run | Yrd Mat Sub Mat Active Infowar (turns) 1590 | 130 435 778 247 Terrain 1503 | 130 435 691 247 Seismic 1464 | 11 435 778 240 Robot Analysis Total . | . . . . Derelict Logs Recovered . | . . . . Drone Launches . | . . . . Drone Recoveries . | . . . . Exploration | -11 -10 -10 -8 ------------- Run | Yrd Mat Sub Mat Turns Passed 2090 | 237 435 778 640 Spaces Moved 1050 | 123 236 437 254 Core 80 | 8 . 29 43 Treads 638 | 115 236 287 . Legs . | . . . . Wheels 332 | . . 121 211 Hover . | . . . . Flight . | . . . . Fastest Speed 50 | 50 160 110 110 Average Speed 162 | 152 160 148 191 Slowest Speed 600 | 160 160 200 600 Overloaded Moves . | . . . . Propulsion Burnouts . | . . . . Robots Hopped . | . . . . Potential Cave-ins . | . . . . Cave-ins Triggered . | . . . . Exploration Rate (%) 18 | 5 37 17 13 Regions Visited 3 Branch Regions 1 Pre-discovered Areas . | . . . . Known Exits Taken . | . . . . Unknown Exits Taken 3 | 1 1 1 . Scrap Searched . | . . . . Spaces Dug . | . . . . Terrain Destroyed . | . . . . Melee . | . . . . Projectile . | . . . . AOE . | . . . . Terrain Rammed . | . . . . Walls Destroyed . | . . . . Machines Disabled . | . . . . Actions | -11 -10 -10 -8 --------- Run | Yrd Mat Sub Mat Total 1273 | 145 278 501 349 Wait 99 | . 34 25 40 Move 1047 | 122 235 436 254 Hop . | . . . . Pick Up 10 | 4 1 . 5 Fast Attach 17 | 7 . 3 7 Attach 8 | . . 3 5 Detach 4 | . . . 4 Swap 8 | . . 2 6 Drop 4 | . . . 4 Fire 73 | 12 8 32 21 Melee . | . . . . Ram 3 | . . . 3 Kick . | . . . . Crush . | . . . . Escape Stasis . | . . . . Rewire . | . . . . Trap . | . . . . Miscellaneous . | . . . . Route ------- -11/Scrapyard -10/Materials (discovered 2 exits: [*Mat] / [*Sub]) -10/Subcaves -8/Materials History --------- Turn | Location | Event 9 | -11/Scrapyard | Discovered new exit (range 16) 238 | -11/Scrapyard | Entered Materials 305 | -10/Materials | Build established: Mutant 401 | -10/Materials | Discovered new exit (range 16) 630 | -10/Materials | Discovered new exit (range 16) 673 | -10/Materials | Entered Subcaves 674 | -10/Subcaves | Approached by a straggling Scientist 937 | -10/Subcaves | Shifting Twisted Machinery released Sub. Shrapnel Launcher 967 | -10/Subcaves | Shifting Twisted Machinery released Flamer 1232 | -10/Subcaves | Lost 4 parts (2n1u1w) 1312 | -10/Subcaves | Core integrity fell below 50% 1385 | -10/Subcaves | Core integrity fell below 20% 1430 | -10/Subcaves | Discovered new exit (range 16) 1451 | -10/Subcaves | Entered Materials 1451 | -8/Materials | Evolved 4 slots: Power x1, Utility x1, Weapon x2 1728 | -8/Materials | Core integrity fell below 50% 1738 | -8/Materials | Core integrity fell below 20% 1752 | -8/Materials | Lost 3 parts (1n2u) 2091 | -8/Materials | Destroyed by L-31 Rogue with Katana Last Messages --------------- 02034_ G-50 Soldier destroyed. 02034_ K-01 Serf collects debris. 02036_ R-06 Scavenger collects Imp. Heat Sink. 02038_ K-01 Serf collects debris. 02040_ Com. Wheel broken. 02040_ Overheating: Short circuit. 02040_ Acquired Lgt. Angular Momentum Engine. 02041_ Acquired 10 matter. 02041_ K-01 Serf collects debris. 02042_ Slammed into K-01 Serf. 02044_ Overheating: Hvy. Laser damaged (-11). 02044_ K-01 Serf collects debris. 02047_ K-01 Serf cleans the Terminal. 02048_ Overheating: System interference. 02048_ Hvy. Laser temporarily disabled. 02048_ K-01 Serf destroyed. 02074_ K-01 Serf collects debris. 02075_ Slammed into K-01 Serf. 02082_ R-06 Scavenger collects Imp. Heat Sink. 02087_ Slammed into R-06 Scavenger. Map ----- +----------------------------------------------------+ | ## ########### #?????????????????????????????? | | #?????????????????????????????? | | #?#???????????????????????????? | | #?????????????????????????????? | | ########+######+###??????????????????????????????? | | ??# #????????????????????????????????????? | | ??# #?? ?????????????????????????????????? | | ??# #?? ?? ??????????????????????????????? | | ??# #????????????????????????????????????? | | ??# #????????? ????????????????????????? | | ??# #????????# #???????????????????????? | | ??# #????????# #???????????????????????? | | ??# #????????# #???????????????????????? | | ??#########+##???????# #???????????????????????? | | ##### ## ##???????# #???????????????????????? | | ? ?# #????????# #???????????????????????? | | ??? ?# #????????# #???????????????????????? | | ??+?# ?# ##???????# #???????????????????????? | | ?????# ### #?? ????+ #???????????????????????? | | ???## #????"??# #?#?????????????????????? | | ?????# #???"???# #??????###??????????????? | | ?? ??# #?? ????# ######"T"### ##?????????? | | ###### ######### #?????????? | | # [ #?????????? | | # %lg #?????????? | | + # ##########@### +?????????? | | # # #?????# %% #?????? #?????????? | | # # !! #??#??# % #????????????????????? | | # # !! #?????# """%#????????????????????? | | ###### ########?????# T" #????????????????????? | | ######! #####??????#?#! """ / ???????????????????? | | ] # % [[#????????# # ?????????????????? | | # ! [[#???##??##########+##????????????????? | | # ! #?????##?#???????????????????????????? | | ""[ # !!#????##??????????????????????????????? | | S"" [+ !!##??#??????#?????????????????????????? | | "" !#[ !!#??#?????????????????????????????????? | | ###### ######???????????????????????????????????? | | ##### /#???????????????????????????????????????? | | #???#??????????#????????????????????????? | | T #?#????#????????????????????????????????? | | ##+## #???????????????????????????????????????? | | ######???????????????????????????????????????? | | T #?#???#??????????????????????????????????????? | | ##??????#?#??????????????????????????????????? | | #???????#????????????????????????????????????? | | #????????????????????????????????????????????? | | #????????????????????????????????????????????? | | #####???????????#????????????????????????????????? | | ??????###??#?????????????????????????????????????? | +----------------------------------------------------+ Best States ------------- Heat Dissipation 31 Energy Generation 20 Energy Capacity 350 Matter Stores 300 Matter Capacity 300 Sight Range 16 Terrain Scan Range 16 Terrain Scan Density 10 Evasion (%) 40 Core Analysis 6 Recoil Reduction 2 Item Schematics ----------------- None Robot Schematics ------------------ None Fabricated ------------ Nothing Repaired ---------- Nothing Alien Tech Used ----------------- None Achievements -------------- None Challenges ------------ None Game ------ Seed AutogunMomentumMeganuke Manual? 0 Play Time 00:18:56 Cumulative 12.5 hours Start 2025.06.14 @ 15:44:37 End 2025.06.15 @ 17:11:19 Sessions 2 Manual Loads 0 Difficulty Rogue Special Mode None Game No. 43 Rogue 40 Adventurer 3 Explorer 0 Win Type - Total 0 Types 0/0/0/0/0/0/0/0/0/0 Lore% 10 Gallery% 18 Achievement% 18 Wizard Run 0 Options --------- Layout 0 ASCII 0 Keyboard 1 Movement Arrows Keybinds 0 Fullscreen 2 Font 24/Smallcaps Map View 183x50 Zoom Use 2% Tactical HUD 1 Map Filters NONE Filters NONE Steam 1 RUN: 7b3a25ad-95b1-47d8-b2a2-bdddd5b2aa5c